[Event "Early-Titled-Tuesday-Blitz-May-14-2024"]
[Site "Chess.com"]
[Date "2024.05.14"]
[Round "9"]
[White "blitzking1729"]
[Black "Iskusnyh"]
[Result "1/2-1/2"]
[WhiteElo "2753"]
[BlackElo "2599"]
[TimeControl "180+1"]
[EndTime "9:49:02 PDT"]
[Termination "Game drawn - insufficient material"]

1. e3 {[%clk 0:02:55.2]} 1... c5 {[%clk 0:02:56.1]} 2. c4 {[%clk 0:02:51]} 2...
g6 {[%clk 0:02:54.5]} 3. Nf3 {[%clk 0:02:50.2]} 3... Bg7 {[%clk 0:02:54.4]} 4.
Nc3 {[%clk 0:02:50.9]} 4... Nf6 {[%clk 0:02:54.3]} 5. d4 {[%clk 0:02:49.7]} 5...
cxd4 {[%clk 0:02:51.3]} 6. Nxd4 {[%clk 0:02:50.1]} 6... Nc6 {[%clk 0:02:46.4]}
7. Nc2 {[%clk 0:02:48]} 7... O-O {[%clk 0:02:42.5]} 8. Be2 {[%clk 0:02:47.8]}
8... d6 {[%clk 0:02:41.7]} 9. e4 {[%clk 0:02:47.9]} 9... Be6 {[%clk 0:02:28.9]}
10. O-O {[%clk 0:02:45.4]} 10... Rc8 {[%clk 0:02:27.4]} 11. f3 {[%clk
0:02:37.7]} 11... Nd7 {[%clk 0:01:53]} 12. Nd5 {[%clk 0:02:03.4]} 12... Bxd5
{[%clk 0:01:26.5]} 13. cxd5 {[%clk 0:02:04.3]} 13... Nb4 {[%clk 0:01:21.6]} 14.
Ne3 {[%clk 0:01:52.9]} 14... Qb6 {[%clk 0:01:11.5]} 15. Kh1 {[%clk 0:01:47.7]}
15... Qd4 {[%clk 0:00:29.7]} 16. Bd2 {[%clk 0:01:37.6]} 16... Nd3 {[%clk
0:00:25.4]} 17. Bxd3 {[%clk 0:01:00.4]} 17... Qxd3 {[%clk 0:00:26.3]} 18. Rb1
{[%clk 0:00:59.8]} 18... Ne5 {[%clk 0:00:22.5]} 19. b3 {[%clk 0:00:52.6]} 19...
Rc7 {[%clk 0:00:21.8]} 20. f4 {[%clk 0:00:49.2]} 20... Nd7 {[%clk 0:00:19.4]}
21. Ba5 {[%clk 0:00:44.8]} 21... Qxd1 {[%clk 0:00:18.2]} 22. Rbxd1 {[%clk
0:00:44]} 22... b6 {[%clk 0:00:18.4]} 23. Bb4 {[%clk 0:00:43.5]} 23... Rfc8
{[%clk 0:00:17.4]} 24. Nc4 {[%clk 0:00:39.4]} 24... Nf6 {[%clk 0:00:13.9]} 25.
e5 {[%clk 0:00:37.9]} 25... Ng4 {[%clk 0:00:12.9]} 26. exd6 {[%clk 0:00:37]}
26... exd6 {[%clk 0:00:11.8]} 27. Bxd6 {[%clk 0:00:34.5]} 27... Rxc4 {[%clk
0:00:11.2]} 28. bxc4 {[%clk 0:00:33.5]} 28... Ne3 {[%clk 0:00:12.1]} 29. Rfe1
{[%clk 0:00:24.6]} 29... Nxd1 {[%clk 0:00:11.6]} 30. Rxd1 {[%clk 0:00:25.5]}
30... Rxc4 {[%clk 0:00:11.9]} 31. Be5 {[%clk 0:00:24.5]} 31... f6 {[%clk
0:00:11.4]} 32. Ba1 {[%clk 0:00:21.1]} 32... Kf7 {[%clk 0:00:11.4]} 33. g3
{[%clk 0:00:19.1]} 33... Ke8 {[%clk 0:00:10.8]} 34. Re1+ {[%clk 0:00:17.1]}
34... Kd7 {[%clk 0:00:10.4]} 35. Kg2 {[%clk 0:00:17.8]} 35... Rc2+ {[%clk
0:00:09.9]} 36. Kh3 {[%clk 0:00:17.6]} 36... Rxa2 {[%clk 0:00:10.8]} 37. Bc3
{[%clk 0:00:17.8]} 37... Rc2 {[%clk 0:00:10.5]} 38. Re3 {[%clk 0:00:17.2]} 38...
a5 {[%clk 0:00:09.7]} 39. Bd4 {[%clk 0:00:16.7]} 39... Rd2 {[%clk 0:00:08.2]}
40. Bxb6 {[%clk 0:00:15.3]} 40... Rxd5 {[%clk 0:00:06.8]} 41. Ra3 {[%clk
0:00:15.9]} 41... Bf8 {[%clk 0:00:02.9]} 42. Rxa5 {[%clk 0:00:14.3]} 42... Rxa5
{[%clk 0:00:03.8]} 43. Bxa5 {[%clk 0:00:14.9]} 43... f5 {[%clk 0:00:04.7]} 44.
Bc3 {[%clk 0:00:12.3]} 44... Kc6 {[%clk 0:00:04.7]} 45. Kg2 {[%clk 0:00:12.2]}
45... Be7 {[%clk 0:00:04.9]} 46. Kf3 {[%clk 0:00:12.6]} 46... Kd5 {[%clk
0:00:05.7]} 47. h3 {[%clk 0:00:10.6]} 47... h5 {[%clk 0:00:05.5]} 48. Bg7 {[%clk
0:00:09]} 48... Kc4 {[%clk 0:00:06.4]} 49. Be5 {[%clk 0:00:08]} 49... Kd3 {[%clk
0:00:06.5]} 50. h4 {[%clk 0:00:06.7]} 50... Bd8 {[%clk 0:00:06.3]} 51. Bd6
{[%clk 0:00:06.6]} 51... Bb6 {[%clk 0:00:06.4]} 52. Bf8 {[%clk 0:00:05.3]} 52...
Kd2 {[%clk 0:00:04.7]} 53. Bb4+ {[%clk 0:00:05.4]} 53... Kd3 {[%clk 0:00:04.9]}
54. Be7 {[%clk 0:00:05.1]} 54... Ba5 {[%clk 0:00:05.2]} 55. Bc5 {[%clk
0:00:05.2]} 55... Kd2 {[%clk 0:00:05.2]} 56. Bf2 {[%clk 0:00:05]} 56... Kd1
{[%clk 0:00:05.4]} 57. Bd4 {[%clk 0:00:03.1]} 57... Ke1 {[%clk 0:00:04]} 58. Be3
{[%clk 0:00:03.1]} 58... Kf1 {[%clk 0:00:03.6]} 59. Bf2 {[%clk 0:00:02.9]} 59...
Bb4 {[%clk 0:00:03.7]} 60. Bd4 {[%clk 0:00:03]} 60... Be1 {[%clk 0:00:03.3]} 61.
Be3 {[%clk 0:00:03.2]} 61... Bc3 {[%clk 0:00:03.2]} 62. Bc5 {[%clk 0:00:03.4]}
62... Be1 {[%clk 0:00:03.9]} 63. Bd4 {[%clk 0:00:03.1]} 63... Bb4 {[%clk
0:00:04.1]} 64. Bb6 {[%clk 0:00:03.2]} 64... Be1 {[%clk 0:00:05]} 65. Bc5 {[%clk
0:00:03.2]} 65... Ba5 {[%clk 0:00:05.4]} 66. Be3 {[%clk 0:00:03.4]} 66... Ke1
{[%clk 0:00:04.9]} 67. Bd4 {[%clk 0:00:03.4]} 67... Kd1 {[%clk 0:00:05.3]} 68.
Be3 {[%clk 0:00:03.6]} 68... Kc2 {[%clk 0:00:05.4]} 69. Ke2 {[%clk 0:00:03.3]}
69... Kb3 {[%clk 0:00:05]} 70. Kd3 {[%clk 0:00:03.1]} 70... Be1 {[%clk
0:00:04.3]} 71. Kd4 {[%clk 0:00:02.4]} 71... Bxg3 {[%clk 0:00:04.5]} 72. Ke5
{[%clk 0:00:03]} 72... Bxh4 {[%clk 0:00:04.8]} 73. Ke6 {[%clk 0:00:03.7]} 73...
Bg3 {[%clk 0:00:05.1]} 74. Kf7 {[%clk 0:00:04.2]} 74... h4 {[%clk 0:00:05.6]}
75. Kxg6 {[%clk 0:00:04.6]} 75... h3 {[%clk 0:00:06.1]} 76. Bg1 {[%clk
0:00:05.2]} 76... Bxf4 {[%clk 0:00:05.7]} 77. Kxf5 {[%clk 0:00:05.8]} 77... h2
{[%clk 0:00:06.6]} 78. Bxh2 {[%clk 0:00:05.4]} 1/2-1/2

[Event "Early-Titled-Tuesday-Blitz-May-14-2024"]
[Site "Chess.com"]
[Date "2024.05.14"]
[Round "9"]
[White "rasmussvane"]
[Black "Rodalquilar"]
[Result "1-0"]
[WhiteElo "2976"]
[BlackElo "2886"]
[TimeControl "180+1"]
[EndTime "9:49:23 PDT"]
[Termination "rasmussvane won on time"]

1. Nf3 {[%clk 0:03:00.9]} 1... d5 {[%clk 0:03:00.2]} 2. g3 {[%clk 0:03:00.9]}
2... Nf6 {[%clk 0:03:00.6]} 3. Bg2 {[%clk 0:02:59.9]} 3... Bf5 {[%clk
0:03:00.9]} 4. O-O {[%clk 0:03:00.1]} 4... e6 {[%clk 0:03:01.5]} 5. c4 {[%clk
0:03:00.5]} 5... c6 {[%clk 0:03:02]} 6. Qb3 {[%clk 0:03:00.8]} 6... Qb6 {[%clk
0:03:01.2]} 7. d3 {[%clk 0:03:00.9]} 7... h6 {[%clk 0:02:57.9]} 8. cxd5 {[%clk
0:03:01.1]} 8... Qxb3 {[%clk 0:02:56.4]} 9. axb3 {[%clk 0:03:02]} 9... exd5
{[%clk 0:02:55.5]} 10. Bd2 {[%clk 0:03:02.5]} 10... Nbd7 {[%clk 0:02:54.8]} 11.
b4 {[%clk 0:03:03.1]} 11... a6 {[%clk 0:02:54.1]} 12. Bc3 {[%clk 0:03:03.5]}
12... Be7 {[%clk 0:02:44.6]} 13. Nbd2 {[%clk 0:03:02.4]} 13... O-O {[%clk
0:02:44.1]} 14. Nb3 {[%clk 0:03:00.9]} 14... Bd8 {[%clk 0:02:44.3]} 15. Nfd4
{[%clk 0:02:59.6]} 15... Bg6 {[%clk 0:02:26.1]} 16. h3 {[%clk 0:02:56.6]} 16...
Bc7 {[%clk 0:02:25.4]} 17. f4 {[%clk 0:02:41.3]} 17... Ne8 {[%clk 0:02:16.4]}
18. g4 {[%clk 0:02:38.5]} 18... Nd6 {[%clk 0:02:16.1]} 19. Rae1 {[%clk
0:02:16.5]} 19... Rfe8 {[%clk 0:02:13]} 20. Bf3 {[%clk 0:02:06.7]} 20... f6
{[%clk 0:02:12.9]} 21. Kg2 {[%clk 0:02:05.9]} 21... Nb5 {[%clk 0:02:07.9]} 22.
Bd2 {[%clk 0:02:00.3]} 22... Bb6 {[%clk 0:02:01.9]} 23. Nc2 {[%clk 0:01:56]}
23... Bf7 {[%clk 0:01:58.1]} 24. h4 {[%clk 0:01:40.1]} 24... Nf8 {[%clk
0:01:38.9]} 25. Nc5 {[%clk 0:01:32.7]} 25... Bxc5 {[%clk 0:01:14.2]} 26. bxc5
{[%clk 0:01:33.6]} 26... d4 {[%clk 0:01:14.8]} 27. b4 {[%clk 0:01:21.4]} 27...
Ne6 {[%clk 0:01:02.3]} 28. f5 {[%clk 0:01:19.2]} 28... Nec7 {[%clk 0:01:02.5]}
29. g5 {[%clk 0:01:19.3]} 29... hxg5 {[%clk 0:01:01.3]} 30. hxg5 {[%clk
0:01:20.2]} 30... fxg5 {[%clk 0:01:01.7]} 31. Bxg5 {[%clk 0:01:19.6]} 31... Bd5
{[%clk 0:01:00.7]} 32. Bd2 {[%clk 0:01:04.6]} 32... Bxf3+ {[%clk 0:01:00.1]} 33.
Rxf3 {[%clk 0:00:54.3]} 33... Nd5 {[%clk 0:01:00.4]} 34. Kf2 {[%clk 0:00:54]}
34... Re5 {[%clk 0:00:57]} 35. Kg3 {[%clk 0:00:19.6]} 35... Rae8 {[%clk
0:00:49]} 36. Rf2 {[%clk 0:00:19.6]} 36... Rf8 {[%clk 0:00:33.5]} 37. Kg4 {[%clk
0:00:19.5]} 37... g6 {[%clk 0:00:28.3]} 38. e4 {[%clk 0:00:13.7]} 38... dxe3
{[%clk 0:00:27.7]} 39. Nxe3 {[%clk 0:00:14.1]} 39... Nxe3+ {[%clk 0:00:26.1]}
40. Rxe3 {[%clk 0:00:14.6]} 40... Rexf5 {[%clk 0:00:13.4]} 41. Rxf5 {[%clk
0:00:11.9]} 41... Rxf5 {[%clk 0:00:14.3]} 42. Re6 {[%clk 0:00:12.3]} 42... Kf7
{[%clk 0:00:11.4]} 43. Re4 {[%clk 0:00:12.7]} 43... Rf2 {[%clk 0:00:09.4]} 44.
Bg5 {[%clk 0:00:12.8]} 44... Rg2+ {[%clk 0:00:08.1]} 45. Kh4 {[%clk 0:00:10.9]}
45... Kf8 {[%clk 0:00:06.1]} 46. Bh6+ {[%clk 0:00:06.2]} 46... Kf7 {[%clk
0:00:05.6]} 47. Bg5 {[%clk 0:00:06.9]} 47... Kf8 {[%clk 0:00:06.1]} 48. Re6
{[%clk 0:00:07.1]} 48... Nd4 {[%clk 0:00:04.6]} 49. Rxg6 {[%clk 0:00:06]} 49...
Nf3+ {[%clk 0:00:03.7]} 50. Kh5 {[%clk 0:00:05.6]} 50... Rh2+ {[%clk 0:00:02.9]}
51. Kg4 {[%clk 0:00:03.9]} 51... Nxg5 {[%clk 0:00:03.4]} 52. Rxg5 {[%clk
0:00:03.8]} 52... Rb2 {[%clk 0:00:03.7]} 53. Rf5+ {[%clk 0:00:03.7]} 53... Ke7
{[%clk 0:00:03.5]} 54. Rf4 {[%clk 0:00:04.4]} 54... Rb3 {[%clk 0:00:03]} 55. Rd4
{[%clk 0:00:04.6]} 55... Ke6 {[%clk 0:00:03.2]} 56. Kf4 {[%clk 0:00:04.9]} 56...
a5 {[%clk 0:00:02.3]} 57. bxa5 {[%clk 0:00:05.1]} 57... Rb5 {[%clk 0:00:02.5]}
58. Rd6+ {[%clk 0:00:04.9]} 58... Ke7 {[%clk 0:00:03]} 59. a6 {[%clk 0:00:05.5]}
59... Rxc5 {[%clk 0:00:01.4]} 60. axb7 {[%clk 0:00:05.9]} 60... Rb5 {[%clk
0:00:01.9]} 61. Rxc6 {[%clk 0:00:06.4]} 61... Rxb7 {[%clk 0:00:02.4]} 62. Rh6
{[%clk 0:00:07.3]} 62... Kd8 {[%clk 0:00:02.5]} 63. d4 {[%clk 0:00:06.9]} 63...
Rb5 {[%clk 0:00:02]} 64. Ke4 {[%clk 0:00:07.1]} 64... Rg5 {[%clk 0:00:02]} 65.
Rh7 {[%clk 0:00:07.3]} 65... Rg1 {[%clk 0:00:01.9]} 66. Kd5 {[%clk 0:00:07.7]}
66... Ra1 {[%clk 0:00:02.1]} 67. Ke5 {[%clk 0:00:07.7]} 67... Ra5+ {[%clk
0:00:01.4]} 68. d5 {[%clk 0:00:08.2]} 68... Ra6 {[%clk 0:00:02.1]} 69. Rg7
{[%clk 0:00:08.7]} 69... Rb6 {[%clk 0:00:01.7]} 70. Ra7 {[%clk 0:00:08.7]} 70...
Rh6 {[%clk 0:00:01.6]} 71. Kd4 {[%clk 0:00:09.1]} 71... Rg6 {[%clk 0:00:01.9]}
72. Kc5 {[%clk 0:00:09.7]} 72... Rg1 {[%clk 0:00:01.9]} 73. Rh7 {[%clk
0:00:09.8]} 73... Rg6 {[%clk 0:00:01.9]} 74. Rf7 {[%clk 0:00:09.8]} 74... Rh6
{[%clk 0:00:02.3]} 75. Rg7 {[%clk 0:00:10.4]} 75... Rf6 {[%clk 0:00:02.5]} 76.
Kd4 {[%clk 0:00:10.3]} 76... Rh6 {[%clk 0:00:02.8]} 77. Ke5 {[%clk 0:00:10.9]}
77... Ra6 {[%clk 0:00:03.1]} 78. Rb7 {[%clk 0:00:10.8]} 78... Rh6 {[%clk
0:00:03.1]} 79. Rb4 {[%clk 0:00:10.6]} 79... Rg6 {[%clk 0:00:03.4]} 80. Rf4
{[%clk 0:00:11]} 80... Rh6 {[%clk 0:00:03.8]} 81. Kd4 {[%clk 0:00:11.6]} 81...
Ra6 {[%clk 0:00:03.9]} 82. Rf8+ {[%clk 0:00:09.9]} 82... Ke7 {[%clk 0:00:04.1]}
83. Rh8 {[%clk 0:00:10.8]} 83... Kd7 {[%clk 0:00:04.3]} 84. Ke5 {[%clk
0:00:10.6]} 84... Rg6 {[%clk 0:00:04.6]} 85. Rh7+ {[%clk 0:00:10.4]} 85... Kd8
{[%clk 0:00:05]} 86. Kd4 {[%clk 0:00:11]} 86... Ra6 {[%clk 0:00:04.8]} 87. Rb7
{[%clk 0:00:10.2]} 87... Rg6 {[%clk 0:00:04.9]} 88. Rb3 {[%clk 0:00:09.8]} 88...
Rh6 {[%clk 0:00:05.1]} 89. Kc5 {[%clk 0:00:10.2]} 89... Rh1 {[%clk 0:00:03.9]}
90. Kc6 {[%clk 0:00:09.3]} 90... Rh6+ {[%clk 0:00:03.6]} 91. d6 {[%clk
0:00:09.6]} 91... Kc8 {[%clk 0:00:04.2]} 92. Rg3 {[%clk 0:00:09]} 92... Rh8
{[%clk 0:00:03.9]} 93. Ra3 {[%clk 0:00:08.4]} 93... Kb8 {[%clk 0:00:03.6]} 94.
Rb3+ {[%clk 0:00:08.7]} 94... Kc8 {[%clk 0:00:03.9]} 95. d7+ {[%clk 0:00:08.8]}
95... Kd8 {[%clk 0:00:04.5]} 96. Rb8+ {[%clk 0:00:09.5]} 96... Ke7 {[%clk
0:00:05.4]} 97. Rxh8 {[%clk 0:00:09.9]} 1-0

[Event "Early-Titled-Tuesday-Blitz-May-14-2024"]
[Site "Chess.com"]
[Date "2024.05.14"]
[Round "10"]
[White "Zq1"]
[Black "wild3000"]
[Result "1-0"]
[WhiteElo "2617"]
[BlackElo "2502"]
[TimeControl "180+1"]
[EndTime "9:52:10 PDT"]
[Termination "Zq1 won by resignation"]

1. d4 {[%clk 0:03:00.9]} 1... d5 {[%clk 0:03:00.1]} 2. c4 {[%clk 0:03:01]} 2...
e6 {[%clk 0:03:00.2]} 3. Nf3 {[%clk 0:02:59.9]} 3... Nf6 {[%clk 0:03:00.3]} 4.
Nc3 {[%clk 0:02:59.6]} 4... c5 {[%clk 0:02:58.6]} 5. cxd5 {[%clk 0:02:58.5]}
5... Nxd5 {[%clk 0:02:58.2]} 6. e4 {[%clk 0:02:58.6]} 6... Nxc3 {[%clk
0:02:58.3]} 7. bxc3 {[%clk 0:02:59.3]} 7... cxd4 {[%clk 0:02:58.9]} 8. cxd4
{[%clk 0:03:00]} 8... Bb4+ {[%clk 0:02:59.1]} 9. Bd2 {[%clk 0:03:00.7]} 9...
Bxd2+ {[%clk 0:02:59.4]} 10. Qxd2 {[%clk 0:03:01.4]} 10... O-O {[%clk 0:03:00]}
11. Bc4 {[%clk 0:03:00.9]} 11... Nc6 {[%clk 0:02:57.8]} 12. O-O {[%clk
0:03:00.6]} 12... b6 {[%clk 0:02:57.8]} 13. Rad1 {[%clk 0:02:59.3]} 13... Na5
{[%clk 0:02:57.9]} 14. Bd3 {[%clk 0:02:58.2]} 14... Bb7 {[%clk 0:02:55.9]} 15.
d5 {[%clk 0:02:58.3]} 15... exd5 {[%clk 0:02:51.8]} 16. e5 {[%clk 0:02:58.5]}
16... d4 {[%clk 0:02:40.3]} 17. Nxd4 {[%clk 0:02:54.1]} 17... Qh4 {[%clk
0:02:33.2]} 18. Nf5 {[%clk 0:02:42.4]} 18... Qg4 {[%clk 0:02:26.2]} 19. f3
{[%clk 0:02:41.6]} 19... Qd4+ {[%clk 0:02:23.7]} 20. Nxd4 {[%clk 0:02:40.6]} 1-0

[Event "Early-Titled-Tuesday-Blitz-May-14-2024"]
[Site "Chess.com"]
[Date "2024.05.14"]
[Round "10"]
[White "SuperJesus88"]
[Black "Buzhizhebuguai"]
[Result "1-0"]
[WhiteElo "2571"]
[BlackElo "2764"]
[TimeControl "180+1"]
[EndTime "9:52:43 PDT"]
[Termination "SuperJesus88 won by resignation"]

1. e4 {[%clk 0:03:00.9]} 1... e6 {[%clk 0:02:59.3]} 2. d4 {[%clk 0:03:00.6]}
2... d5 {[%clk 0:02:59.6]} 3. Nd2 {[%clk 0:03:01.2]} 3... Nf6 {[%clk 0:02:59.1]}
4. e5 {[%clk 0:03:00.2]} 4... Ne4 {[%clk 0:02:58.7]} 5. Nxe4 {[%clk 0:02:59.3]}
5... dxe4 {[%clk 0:02:59.6]} 6. f3 {[%clk 0:02:59.5]} 6... c5 {[%clk 0:02:56]}
7. c3 {[%clk 0:02:59.6]} 7... cxd4 {[%clk 0:02:55.5]} 8. cxd4 {[%clk 0:03:00.2]}
8... Bb4+ {[%clk 0:02:56]} 9. Kf2 {[%clk 0:02:59.6]} 9... Nc6 {[%clk 0:02:53]}
10. Be3 {[%clk 0:02:59.7]} 10... exf3 {[%clk 0:02:49.8]} 11. Nxf3 {[%clk
0:02:59.7]} 11... O-O {[%clk 0:02:48.8]} 12. Bd3 {[%clk 0:02:57.1]} 12... f6
{[%clk 0:02:48.8]} 13. exf6 {[%clk 0:02:53]} 13... Qxf6 {[%clk 0:02:48.7]} 14.
Rf1 {[%clk 0:02:51.7]} 14... Ba5 {[%clk 0:02:26]} 15. Kg1 {[%clk 0:02:46.2]}
15... Qe7 {[%clk 0:02:16.1]} 16. Bxh7+ {[%clk 0:02:31.9]} 16... Kxh7 {[%clk
0:02:15.9]} 17. Ng5+ {[%clk 0:02:32.5]} 17... Kg8 {[%clk 0:02:16.3]} 18. Qh5
{[%clk 0:02:32]} 18... g6 {[%clk 0:02:13.7]} 19. Qxg6+ {[%clk 0:02:30.1]} 19...
Qg7 {[%clk 0:02:13.8]} 20. Rxf8+ {[%clk 0:02:28.7]} 20... Kxf8 {[%clk
0:02:14.3]} 21. Rf1+ {[%clk 0:02:28.5]} 21... Kg8 {[%clk 0:02:14.9]} 22. Qe8+
{[%clk 0:02:28.6]} 1-0

[Event "Early-Titled-Tuesday-Blitz-May-14-2024"]
[Site "Chess.com"]
[Date "2024.05.14"]
[Round "10"]
[White "maurovargas01"]
[Black "MikeWizard"]
[Result "0-1"]
[WhiteElo "1944"]
[BlackElo "2012"]
[TimeControl "180+1"]
[EndTime "9:54:06 PDT"]
[Termination "MikeWizard won by resignation"]

1. e4 {[%clk 0:02:59.8]} 1... c5 {[%clk 0:02:59.1]} 2. Nc3 {[%clk 0:02:58.9]}
2... g6 {[%clk 0:02:56.7]} 3. f4 {[%clk 0:02:59.6]} 3... Bg7 {[%clk 0:02:56.4]}
4. Nf3 {[%clk 0:03:00.5]} 4... Nc6 {[%clk 0:02:55.5]} 5. Bb5 {[%clk 0:03:00.2]}
5... Nd4 {[%clk 0:02:54.5]} 6. Nxd4 {[%clk 0:02:56.3]} 6... cxd4 {[%clk
0:02:54.1]} 7. Ne2 {[%clk 0:02:54.8]} 7... Qb6 {[%clk 0:02:52.5]} 8. Bd3 {[%clk
0:02:54.2]} 8... d6 {[%clk 0:02:47.6]} 9. O-O {[%clk 0:02:52.9]} 9... Nf6 {[%clk
0:02:45.7]} 10. f5 {[%clk 0:02:51.2]} 10... Bd7 {[%clk 0:02:40.6]} 11. c3 {[%clk
0:02:46.2]} 11... dxc3+ {[%clk 0:02:36.1]} 12. Kh1 {[%clk 0:02:44.5]} 12... cxb2
{[%clk 0:02:32.7]} 13. Rb1 {[%clk 0:02:41.6]} 13... bxc1=Q {[%clk 0:02:30.6]}
14. Rxb6 {[%clk 0:02:38.3]} 14... Qxd1 {[%clk 0:02:27.4]} 15. Rxd1 {[%clk
0:02:37.9]} 15... axb6 {[%clk 0:02:27.3]} 16. fxg6 {[%clk 0:02:35.6]} 16... hxg6
{[%clk 0:02:26.4]} 17. Bc4 {[%clk 0:02:34.6]} 17... Ng4 {[%clk 0:02:24.6]} 18.
Rc1 {[%clk 0:02:25.5]} 18... Rc8 {[%clk 0:02:15]} 19. h3 {[%clk 0:02:16.5]}
19... b5 {[%clk 0:02:12.5]} 20. Bb3 {[%clk 0:02:01.3]} 20... Rxc1+ {[%clk
0:02:10.9]} 21. Nxc1 {[%clk 0:02:01.3]} 21... Nf2+ {[%clk 0:02:10.9]} 22. Kg1
{[%clk 0:02:01]} 22... Nxe4 {[%clk 0:02:10.8]} 23. Nd3 {[%clk 0:01:54.8]} 23...
Nc5 {[%clk 0:02:08.7]} 24. Nxc5 {[%clk 0:01:52.7]} 24... dxc5 {[%clk 0:02:07.2]}
25. d3 {[%clk 0:01:46.4]} 25... Be6 {[%clk 0:02:05.1]} 26. Kf2 {[%clk
0:01:43.6]} 26... Bxb3 {[%clk 0:02:03.5]} 27. axb3 {[%clk 0:01:44.5]} 27... O-O
{[%clk 0:02:03.4]} 28. Kf3 {[%clk 0:01:44.2]} 28... Rd8 {[%clk 0:02:03.1]} 29.
Ke4 {[%clk 0:01:44.1]} 29... Rd4+ {[%clk 0:02:02.3]} 30. Ke3 {[%clk 0:01:43.6]}
30... Rb4 {[%clk 0:02:00.6]} 0-1

[Event "Early-Titled-Tuesday-Blitz-May-14-2024"]
[Site "Chess.com"]
[Date "2024.05.14"]
[Round "10"]
[White "ATM622"]
[Black "Fjal"]
[Result "1-0"]
[WhiteElo "2540"]
[BlackElo "2342"]
[TimeControl "180+1"]
[EndTime "9:54:34 PDT"]
[Termination "ATM622 won by resignation"]

1. d4 {[%clk 0:03:00.9]} 1... d6 {[%clk 0:02:45.7]} 2. c4 {[%clk 0:03:00.7]}
2... e5 {[%clk 0:02:45.4]} 3. e3 {[%clk 0:02:58.5]} 3... Nf6 {[%clk 0:02:41.4]}
4. Nc3 {[%clk 0:02:57.4]} 4... Nc6 {[%clk 0:02:39.1]} 5. d5 {[%clk 0:02:55.7]}
5... Ne7 {[%clk 0:02:39]} 6. Nf3 {[%clk 0:02:52.3]} 6... g6 {[%clk 0:02:39.2]}
7. e4 {[%clk 0:02:51.3]} 7... Bg7 {[%clk 0:02:39.5]} 8. Be2 {[%clk 0:02:50.8]}
8... O-O {[%clk 0:02:40]} 9. O-O {[%clk 0:02:50.4]} 9... Ne8 {[%clk 0:02:40.2]}
10. Ne1 {[%clk 0:02:45.1]} 10... f5 {[%clk 0:02:40.7]} 11. Qb3 {[%clk
0:02:42.5]} 11... f4 {[%clk 0:02:37.8]} 12. Nf3 {[%clk 0:02:36.7]} 12... h6
{[%clk 0:02:29.5]} 13. h3 {[%clk 0:02:29]} 13... g5 {[%clk 0:02:29.3]} 14. Nh2
{[%clk 0:02:27.3]} 14... Nf6 {[%clk 0:02:27.8]} 15. Ng4 {[%clk 0:02:23.3]} 15...
Nxg4 {[%clk 0:02:23.4]} 16. hxg4 {[%clk 0:02:21.9]} 16... Bxg4 {[%clk
0:02:23.8]} 17. Bxg4 {[%clk 0:02:21.1]} 17... f3 {[%clk 0:02:22.4]} 18. Bxf3
{[%clk 0:02:17.9]} 18... Rxf3 {[%clk 0:02:22.7]} 19. gxf3 {[%clk 0:02:18.8]}
19... Ng6 {[%clk 0:02:22.9]} 20. Ne2 {[%clk 0:02:14.5]} 20... Nf4 {[%clk
0:02:20.3]} 21. Bxf4 {[%clk 0:02:12.3]} 21... gxf4 {[%clk 0:02:21.2]} 22. Rfd1
{[%clk 0:02:05.4]} 22... Qh4 {[%clk 0:02:13.4]} 23. Kf1 {[%clk 0:02:01.3]} 23...
b6 {[%clk 0:02:09.8]} 24. Ke1 {[%clk 0:01:59.7]} 24... Rf8 {[%clk 0:02:05.7]}
25. Kd2 {[%clk 0:01:57.5]} 25... Qxf2 {[%clk 0:02:05]} 26. Rf1 {[%clk 0:01:55]}
26... Qh4 {[%clk 0:01:53.1]} 27. Rg1 {[%clk 0:01:52.3]} 27... Kh8 {[%clk
0:01:52.2]} 28. Rg4 {[%clk 0:01:52.3]} 28... Qf2 {[%clk 0:01:50.5]} 29. Rag1
{[%clk 0:01:50.2]} 29... Rf7 {[%clk 0:01:50.8]} 30. Qb5 {[%clk 0:01:44.5]} 30...
Qe3+ {[%clk 0:01:49.9]} 31. Ke1 {[%clk 0:01:42.9]} 31... Qxf3 {[%clk 0:01:45.8]}
32. Qe8+ {[%clk 0:01:36.7]} 32... Rf8 {[%clk 0:01:45.7]} 33. Qe7 {[%clk
0:01:36.9]} 1-0

[Event "Early-Titled-Tuesday-Blitz-May-14-2024"]
[Site "Chess.com"]
[Date "2024.05.14"]
[Round "10"]
[White "ReinisUz"]
[Black "BillCoe"]
[Result "1-0"]
[WhiteElo "2424"]
[BlackElo "2191"]
[TimeControl "180+1"]
[EndTime "9:54:47 PDT"]
[Termination "ReinisUz won by resignation"]

1. c4 {[%clk 0:03:00.9]} 1... g6 {[%clk 0:02:54.9]} 2. Nc3 {[%clk 0:03:01.3]}
2... Bg7 {[%clk 0:02:55.3]} 3. g3 {[%clk 0:03:01.4]} 3... Nf6 {[%clk 0:02:55.5]}
4. Bg2 {[%clk 0:03:02]} 4... O-O {[%clk 0:02:55.8]} 5. e4 {[%clk 0:03:02.6]}
5... d6 {[%clk 0:02:56.1]} 6. Nge2 {[%clk 0:03:03.1]} 6... c5 {[%clk 0:02:56.3]}
7. O-O {[%clk 0:03:03.6]} 7... a6 {[%clk 0:02:54.5]} 8. d3 {[%clk 0:02:58.6]}
8... Nc6 {[%clk 0:02:52.8]} 9. Rb1 {[%clk 0:02:58.7]} 9... Bd7 {[%clk
0:02:41.7]} 10. a3 {[%clk 0:02:58.6]} 10... Rb8 {[%clk 0:02:40.5]} 11. b4 {[%clk
0:02:58.7]} 11... b6 {[%clk 0:02:39.5]} 12. h3 {[%clk 0:02:57.5]} 12... Qc8
{[%clk 0:02:38.6]} 13. Kh2 {[%clk 0:02:56.7]} 13... e6 {[%clk 0:02:33]} 14. f4
{[%clk 0:02:56.4]} 14... Nd4 {[%clk 0:02:28.5]} 15. Nxd4 {[%clk 0:02:55.7]}
15... cxd4 {[%clk 0:02:29.4]} 16. Ne2 {[%clk 0:02:56.3]} 16... e5 {[%clk
0:02:29.5]} 17. fxe5 {[%clk 0:02:50.9]} 17... dxe5 {[%clk 0:02:30.4]} 18. Bg5
{[%clk 0:02:51]} 18... Qc6 {[%clk 0:02:14.3]} 19. Qd2 {[%clk 0:02:47.5]} 19...
Rb7 {[%clk 0:01:58.2]} 20. a4 {[%clk 0:02:41.9]} 20... Bc8 {[%clk 0:01:46.8]}
21. b5 {[%clk 0:02:41.8]} 21... axb5 {[%clk 0:01:46.1]} 22. axb5 {[%clk
0:02:42.7]} 22... Qe6 {[%clk 0:01:44.3]} 23. Ra1 {[%clk 0:02:39.3]} 23... Re8
{[%clk 0:01:39.9]} 24. Ra8 {[%clk 0:02:36.2]} 24... Nd7 {[%clk 0:01:36.7]} 25.
Rfa1 {[%clk 0:02:33.3]} 25... Nc5 {[%clk 0:01:35.2]} 26. R1a3 {[%clk 0:02:26.5]}
26... f6 {[%clk 0:01:19.7]} 27. Bh6 {[%clk 0:02:26.4]} 27... Rf7 {[%clk
0:01:18.1]} 28. Bxg7 {[%clk 0:02:23.2]} 28... Kxg7 {[%clk 0:01:18.1]} 29. g4
{[%clk 0:02:21.8]} 29... Bb7 {[%clk 0:01:10.1]} 30. Rxe8 {[%clk 0:02:19.2]}
30... Qxe8 {[%clk 0:01:11]} 31. Ng3 {[%clk 0:02:19.5]} 31... Bc8 {[%clk
0:01:07.8]} 32. Ra8 {[%clk 0:02:18]} 32... Qd7 {[%clk 0:01:05.7]} 33. Bf1 {[%clk
0:02:10.5]} 33... Qb7 {[%clk 0:01:05.3]} 34. Qa2 {[%clk 0:02:08.7]} 34... Rf8
{[%clk 0:01:03.8]} 35. Ra7 {[%clk 0:02:07.8]} 1-0